[Event "7th Porticcio Open 2022"]
[Site "Porticcio"]
[Date "2022.07.07"]
[Round "8.6"]
[White "Maugenest, Ghislain"]
[Black "Peng, Li Min"]
[Result "0-1"]
[ECO "E04"]
[WhiteElo "2203"]
[BlackElo "2516"]
[Annotator "TA"]
[PlyCount "86"]
[EventDate "2022.07.02"]
[EventType "swiss"]
[EventCountry "FRA"]
[SourceTitle "playchess.com"]
[Source "ChessBase"]
[SourceQuality "1"]
[TimeControl "5400+30"]

{[%evp 12,86,13,20,17,20,10,-29,-33,-24,-26,-38,-25,-26,-25,-24,-23,-35,-34,-43,-27,-28,-29,-39,-32,-43,-29,-16,-15,-30,-30,-35,-29,-36,-28,-24,-13,-134,-127,-129,-133,-133,-128,-157,-154,-142,-136,-194,-193,-280,-279,-270,-259,-282,-282,-272,-237,-291,-272,-29970,-29971,-29971,-29970,-29977,-29978,-29978,-29979,-29979,-29980,-29980,-29981,-29981,-29982,-29982,-29983,-29983,-29983]} 1. d4 {[%emt 0:00:04]} d5 {[%emt 0:05:21]} 2. c4 {[%emt 0:00:36]} e6 {[%emt 0:00:04]} 3. Nf3 {[%emt 0:00:18]} Nf6 {[%emt 0:01:41]} 4. g3 {[%emt 0:00:42]} dxc4 {[%emt 0:00:30]} 5. Bg2 {[%emt 0:00:43]} c5 {[%emt 0:00:14]} 6. O-O {[%emt 0:01:25]} Nc6 {[%emt 0:00:06]} 7. dxc5 {[%emt 0:05:55]} (7. Qa4 {is interesting.} Bd7 8. Qxc4 cxd4 9. Nxd4 Rc8 10. Nc3) 7... Qxd1 {[%emt 0:00:29] E04: Open Catalan: 5 Nf3.} 8. Rxd1 {[%emt 0:00:02]} Bxc5 {[%emt 0:00:07]} 9. Na3 {[%emt 0:11:35] [#]} Bxa3 $146 {[%emt 0:19:42] Black has an edge.} ({Predecessor:} 9... Ne4 10. e3 Bxa3 11. bxa3 O-O 12. Nd4 Nc3 13. Rd2 Nxd4 14. exd4 Rd8 15. Rc2 Nb5 16. Rxc4 Nxd4 {1-0 (44) Novak,A (1657)-Jese,J (1860) Komenda 2017}) 10. bxa3 {[%emt 0:00:07]} Nd5 {[%emt 0:00:03]} 11. Bd2 {[%emt 0:16:52]} b6 {[%emt 0:10:30]} (11... c3 12. Be1 $14) 12. e4 {[%emt 0:03:27]} Nf6 {[%emt 0:06:41]} 13. Bc3 {[%emt 0:04:20]} Ba6 {[%emt 0:01:34]} 14. Nd4 {[%emt 0:05:21]} Nxd4 {[%emt 0:10:29]} 15. Rxd4 {[%emt 0:01:33]} Rd8 {[%emt 0:00:02]} 16. Rad1 {[%emt 0:01:41]} Rxd4 {[%emt 0:00:55]} 17. Rxd4 {[%emt 0:00:06]} Nd7 {[%emt 0:01:14]} 18. Rd6 {[%emt 0:21:41]} Ke7 {[%emt 0:01:30]} 19. Bb4 {[%emt 0:01:31] A strong pair of Bishops.} Kd8 {[%emt 0:00:06]} 20. e5 {[%emt 0:04:57]} Bb5 $1 {[%emt 0:00:55]} 21. Rd4 {[%emt 0:00:53]} a5 {[%emt 0:00:28]} 22. Bd6 {[%emt 0:01:03]} c3 {[%emt 0:00:41][%cal Bc4c3,Bc3c2][%mdl 32] And now ...c2 would win.} 23. a4 {[%emt 0:02:14]} Ba6 {[%emt 0:04:17]} 24. Bf1 {[%emt 0:13:17] Black converts the advantage convincingly.} (24. Be4 $11 {keeps the balance.}) 24... c2 $1 $36 {[%emt 0:03:09][%mdl 2048] Black has strong initiative.} ({Of course not} 24... Bxf1 $6 25. Kxf1 f6 26. Ke2 $11 (26. Rc4 Nxe5 27. Rxc3 Kd7 $11)) 25. Ba3 {[%emt 0:00:01]} Bxf1 {[%emt 0:00:06]} 26. Kxf1 {[%emt 0:00:02][%mdl 4096] Endgame [#] KRB-KRN} Kc7 $1 {[%emt 0:00:07]} 27. Rc4+ {[%emt 0:02:44]} Kb7 {[%emt 0:00:05]} 28. Rxc2 {[%emt 0:00:03] [#]} Rc8 $1 {[%emt 0:06:49]} ({Not} 28... Nxe5 29. Bb2 Nd3 30. Bxg7 $15) 29. Rxc8 {[%emt 0:00:03]} (29. Re2 $17) 29... Kxc8 {[%emt 0:00:04] KB-KN} 30. f4 {[%emt 0:01:11]} (30. Ke2 {is a better defense.}) 30... Kb7 $19 {[%emt 0:00:24]} 31. Ke2 {[%emt 0:00:09]} Kc6 {[%emt 0:00:04]} 32. Kd3 {[%emt 0:00:23]} Kd5 {[%emt 0:00:07]} 33. Be7 {[%emt 0:01:26]} h5 {[%emt 0:02:58]} 34. a3 {[%emt 0:00:28]} Nc5+ {[%emt 0:14:27]} 35. Bxc5 $2 {[%emt 0:00:02]} (35. Kd2 $19) 35... bxc5 {[%emt 0:00:04] KP-KP. Black mates.} 36. h3 g6 37. h4 {[%emt 0:01:26]} c4+ {[%emt 0:00:06]} 38. Ke3 {[%emt 0:00:09]} c3 {[%emt 0:00:03]} 39. Kd3 {[%emt 0:00:06]} c2 $1 {[%emt 0:00:03]} 40. Kxc2 {[%emt 0:00:02]} Ke4 {[%emt 0:00:03]} 41. Kc3 {[%emt 0:00:31]} Kf3 {[%emt 0:00:01]} 42. Kc4 {[%emt 0:00:29]} Kxg3 {[%emt 0:00:04]} 43. Kb5 {[%emt 0:00:04]} Kxh4 {[%emt 0:00:03] Weighted Error Value: White=0.33/Black=0.02 (flawless)} 0-1

[Event "7th Porticcio Open 2022"]
[Site "Porticcio"]
[Date "2022.07.07"]
[Round "8.7"]
[White "Trent, Lawrence"]
[Black "Barrish, Daniel"]
[Result "1/2-1/2"]
[ECO "C20"]
[WhiteElo "2404"]
[BlackElo "2283"]
[Annotator "TA"]
[PlyCount "127"]
[EventDate "2022.07.02"]
[EventType "swiss"]
[EventCountry "FRA"]
[SourceTitle "playchess.com"]
[Source "ChessBase"]
[SourceQuality "1"]
[TimeControl "5400+30"]

{[%evp 9,126,14,17,-7,2,-53,27,20,10,-21,-20,-29,11,20,8,18,0,0,0,0,0,0,0,0,-27,-18,8,-6,9,-18,0,0,5,0,6,2,13,0,1,6,8,0,14,8,8,3,10,8,6,0,0,0,0,0,0,-8,0,0,14,26,226,195,181,0,0,0,0,0,0,0,0,-55,-55,-55,0,0,0,0,0,0,0,0,0,0,0,0,0,0,0,0,0,0,0,0,0,0,0,0,0,0,0,0,0,0,0,0,0,0,0,0,0,0,0,0,0,0,0,0,0]} 1. e4 {[%emt 0:00:31]} e5 {[%emt 0:00:12]} 2. Ne2 {[%emt 0:00:11]} Nf6 {[%emt 0:01:34]} 3. d4 {[%emt 0:00:14]} Nxe4 {[%emt 0:01:47]} 4. f3 {[%emt 0:01:03] [#]} Nd6 $146 {[%emt 0:01:12]} ({Predecessor:} 4... Ng5 5. dxe5 d6 6. Nbc3 Ne6 7. exd6 Bxd6 8. Be3 O-O 9. Qd2 Bc5 10. O-O-O Qxd2+ 11. Bxd2 {1-0 (55) Moiseenko,V (2541)-Perov,G (2108) Novorossiysk 2021}) 5. dxe5 {[%emt 0:02:56]} Nf5 {[%emt 0:01:08]} 6. Qd3 {[%emt 0:05:36] C20: 1 e4 e5: Unusual White second moves.} d6 {[%emt 0:01:19]} 7. Bf4 {[%emt 0:04:32]} (7. exd6 $11 Bxd6 8. Bf4) 7... Nc6 {[%emt 0:02:00]} (7... dxe5 $15 8. Bxe5 (8. Qxd8+ Kxd8 9. Bxe5 Ne3 $15) 8... Qxd3 9. cxd3 c5) 8. exd6 $11 {[%emt 0:00:05] White has an edge.} Bxd6 {[%emt 0:00:48]} 9. Bxd6 {[%emt 0:00:01]} Nxd6 {[%emt 0:00:24][%cal Bf5d6,Bd6c4,Bc4e3][%mdl 32]} 10. Nbc3 {[%emt 0:00:38]} O-O {[%emt 0:01:27]} 11. O-O-O {[%emt 0:00:02]} Qg5+ {[%emt 0:04:24]} 12. Qd2 {[%emt 0:01:39]} Qxd2+ {[%emt 0:02:46]} 13. Rxd2 {[%emt 0:00:02]} Nc4 $1 {[%emt 0:00:42]} 14. Rd1 {[%emt 0:00:36]} Ne3 {[%emt 0:02:17]} 15. Rd3 {[%emt 0:00:53]} Re8 {[%emt 0:05:37]} 16. Ne4 {[%emt 0:00:35]} Nxf1 {[%emt 0:04:37]} 17. Rxf1 {[%emt 0:00:03]} Be6 {[%emt 0:02:47]} 18. Rc3 {[%emt 0:04:05]} Rad8 {[%emt 0:06:49]} ({But not} 18... Bxa2 19. b3 $16) 19. a3 {[%emt 0:04:41]} Bc8 {[%emt 0:07:53]} 20. Rd1 {[%emt 0:00:30]} Rxd1+ {[%emt 0:02:02]} 21. Kxd1 {[%emt 0:00:01]} f5 {[%emt 0:00:50]} 22. Nf2 {[%emt 0:02:57]} Kf7 {[%emt 0:03:19]} 23. h4 {[%emt 0:04:11]} Kf6 {[%emt 0:03:16]} 24. Nf4 {[%emt 0:03:28]} Rd8+ {[%emt 0:00:15]} 25. N2d3 {[%emt 0:00:02]} Rd6 {[%emt 0:09:30]} 26. b4 {[%emt 0:07:06]} a6 27. a4 {[%emt 0:00:05] Black should prevent b5.} Nxb4 {[%emt 0:03:30]} 28. Rxc7 {[%emt 0:00:04]} Nxd3 {[%emt 0:00:20]} 29. cxd3 {[%emt 0:02:14]} Rc6 {[%emt 0:04:20]} 30. Rxc6+ {[%emt 0:05:20]} bxc6 {[%emt 0:00:06][%mdl 4096] Endgame KB-KN} 31. Kd2 {[%emt 0:04:55]} Ke5 {[%emt 0:01:32]} 32. g3 {[%emt 0:02:12]} a5 {[%emt 0:01:22]} 33. Kc3 {[%emt 0:00:41]} Ba6 {[%emt 0:02:53]} 34. Ng2 {[%emt 0:01:18]} c5 $2 {[%emt 0:08:05]} (34... g6 $11 {and Black has nothing to worry.}) 35. f4+ $18 {[%emt 0:00:42]} Kd6 {[%emt 0:01:14]} 36. h5 $2 {[%emt 0:04:24]} (36. Ne3 $18) 36... Bc8 $11 {[%emt 0:07:47]} 37. Ne3 {[%emt 0:02:17] [#] Strongly threatening Nc4+.} Bd7 {[%emt 0:00:26]} 38. Nc4+ {[%emt 0:00:07]} Kd5 {[%emt 0:00:51]} 39. Ne3+ {[%emt 0:02:01]} Kd6 {[%emt 0:00:05]} 40. d4 {[%emt 0:02:56]} (40. Kc4 $11) 40... cxd4+ $15 {[%emt 0:01:02]} 41. Kxd4 {[%emt 0:00:01][%cal Oh5h6]} Ke6 {[%emt 0:00:20]} (41... h6 $1 $15) 42. h6 $1 $11 {[%emt 0:01:27] The position is equal.} gxh6 {[%emt 0:00:36]} 43. Nc4 {[%emt 0:00:03]} Bxa4 {[%emt 0:00:08]} 44. Nxa5 {[%emt 0:00:13]} Bc2 {[%emt 0:01:10]} 45. Kc5 {[%emt 0:01:45]} Be4 {[%emt 0:01:23]} 46. Nc4 $1 {[%emt 0:00:56]} Bd3 {[%emt 0:00:29]} 47. Nd2 {[%emt 0:00:25]} (47. Kd4 $5 {[%cal Rd4d3]} Be2 48. Kc5 $11) 47... Bc2 {[%emt 0:01:29]} 48. Kc4 {[%emt 0:01:40]} Bd1 {[%emt 0:00:46]} 49. Kd4 {[%emt 0:00:15]} Bc2 {[%emt 0:00:37]} 50. Nf1 {[%emt 0:00:30]} Bb1 {[%emt 0:00:47]} 51. Ne3 {[%emt 0:00:11]} Kd6 {[%emt 0:00:17]} 52. Nc4+ {[%emt 0:00:16]} Ke6 {[%emt 0:00:10]} 53. Kc5 {[%emt 0:00:08]} Be4 {[%emt 0:00:27]} 54. Ne5 {[%emt 0:01:18]} Bg2 {[%emt 0:01:00]} 55. Nc4 $1 {[%emt 0:01:01]} Be4 {[%emt 0:00:26]} 56. Nd2 {[%emt 0:00:29]} Bd5 {[%emt 0:01:05]} 57. Nb1 {[%emt 0:00:20]} Be4 {[%emt 0:00:13]} 58. Nc3 {[%emt 0:00:03]} Bf3 {[%emt 0:02:03]} 59. Nb5 {[%emt 0:00:49] [#] White wants to mate with Nd4+.} Be4 {[%emt 0:00:07]} 60. Nd4+ {[%emt 0:00:04]} Kf6 {[%emt 0:00:03] aiming for ...Kg6.} 61. Kd6 {[%emt 0:02:07]} Kg6 {[%emt 0:00:06] White must now prevent ...Kh5.} 62. Ke5 {[%emt 0:00:02]} Kh5 {[%emt 0:00:15]} 63. Nxf5 {[%emt 0:00:05]} Bxf5 {[%emt 0:00:05]} 64. Kxf5 {Weighted Error Value: White=0.09 (flawless) /Black=0.12 (very precise)} 1/2-1/2

[Event "7th Porticcio Open 2022"]
[Site "Porticcio"]
[Date "2022.07.07"]
[Round "8.8"]
[White "Droin, Augustin"]
[Black "Virtanen, Antti"]
[Result "1-0"]
[ECO "B40"]
[WhiteElo "2391"]
[BlackElo "2270"]
[Annotator "TA"]
[PlyCount "83"]
[EventDate "2022.07.02"]
[EventType "swiss"]
[EventCountry "FRA"]
[SourceTitle "playchess.com"]
[Source "ChessBase"]
[SourceQuality "1"]
[TimeControl "5400+30"]

{[%evp 23,83,20,25,11,18,12,7,6,24,38,26,19,15,11,10,10,12,9,45,43,36,20,76,85,90,90,83,89,97,112,141,141,136,136,183,191,199,174,196,189,317,189,291,267,315,303,322,273,384,351,579,570,586,568,567,567,647,622,1064,985,29968,6303]} 1. e4 {[%emt 0:00:03]} c5 {[%emt 0:00:05]} 2. Nf3 {[%emt 0:00:04][%cal Bg1f3,Bf3d4,Bd4b5][%mdl 32]} e6 {[%emt 0:00:12]} 3. d4 {[%emt 0:00:03]} cxd4 {[%emt 0:00:06]} 4. Nxd4 {[%emt 0:00:03]} Nf6 {[%emt 0:00:26]} 5. Nc3 {[%emt 0:00:03]} Nc6 {[%emt 0:00:08]} 6. Ndb5 {[%emt 0:00:03]} Bb4 {[%emt 0:00:42]} 7. a3 {[%emt 0:00:03]} Bxc3+ {[%emt 0:00:05]} 8. Nxc3 {[%emt 0:00:03]} d5 {[%emt 0:00:11]} 9. Bd3 {[%emt 0:00:03]} dxe4 {[%emt 0:00:47]} 10. Nxe4 {[%emt 0:00:26]} Nxe4 {[%emt 0:00:06]} 11. Bxe4 {[%emt 0:00:03]} Qxd1+ {[%emt 0:00:07]} 12. Kxd1 {[%emt 0:00:02]} Bd7 {[%emt 0:00:08]} 13. Re1 {[%emt 0:00:03] B45: Sicilian Four Knights.} O-O-O {[%emt 0:08:09]} 14. Bd2 {[%emt 0:02:02] [#]} Nd4 $146 {[%emt 0:05:11]} ({Predecessor:} 14... f5 15. Bd3 e5 16. a4 e4 17. Bf1 h6 18. Ra3 g5 19. Kc1 Rde8 20. a5 Rhf8 {½-½ (63) Steinbacher,M (2334)-Vagner,T (2216) Bayern 2007}) 15. a4 {[%emt 0:00:15] The position is equal.} f5 {[%emt 0:06:43]} 16. Bd3 {[%emt 0:01:11]} Bc6 {[%emt 0:00:55]} 17. f3 {[%emt 0:01:56]} Nb3 {[%emt 0:04:53]} 18. Ra3 {[%emt 0:07:07]} Nxd2 {[%emt 0:00:57]} 19. Kxd2 {[%emt 0:00:04]} Rhe8 {[%emt 0:01:08]} 20. Re5 {[%emt 0:02:59]} (20. b4 {looks sharper.} e5 21. b5 e4 22. bxc6 bxc6 23. Rc3) 20... Rd5 {[%emt 0:13:38]} 21. Rxd5 {[%emt 0:03:14]} Bxd5 $14 {[%emt 0:00:07][%mdl 4096] Endgame KRB-KRB} 22. Rc3+ {[%emt 0:07:17]} Kd7 {[%emt 0:03:06]} (22... Kb8 $11 {keeps the balance.}) 23. Bb5+ $16 {[%emt 0:00:55] Black is on the road to losing.} Bc6 {[%emt 0:00:07]} 24. Bxc6+ {[%emt 0:00:02]} bxc6 {[%emt 0:00:07] KR-KR} 25. Rc5 {[%emt 0:00:03]} Kc7 {[%emt 0:04:30]} 26. b4 {[%emt 0:01:56]} Kd6 {[%emt 0:08:01]} 27. Ra5 {[%emt 0:00:39]} Re7 {[%emt 0:00:07] [#]} 28. f4 $1 {[%emt 0:01:02]} Rb7 {[%emt 0:02:21] [#]} (28... h6 $16) 29. c3 $1 $18 {[%emt 0:03:32][%cal Bc2c3,Bc3c4,Bc4c5][%mdl 32]} h6 {[%emt 0:00:48]} 30. g3 {[%emt 0:04:45]} Rd7 {[%emt 0:08:25]} 31. Ke3 {[%emt 0:00:11]} Ke7 {[%emt 0:04:42]} (31... g5 $142 32. Kd4 Rh7) 32. Rc5 {[%emt 0:06:44]} (32. Ra6 $142) 32... Rd6 {[%emt 0:02:53]} (32... Kd6 {keeps fighting.} 33. Ra5 g5) 33. c4 {[%emt 0:00:08]} Kf6 {[%emt 0:01:29]} 34. Ra5 {[%emt 0:02:39]} Rd7 {[%emt 0:00:54]} 35. c5 {[%emt 0:02:55]} Rb7 {[%emt 0:10:43]} (35... e5 $142 36. Ra6 exf4+ 37. gxf4 Ke6) 36. b5 {[%emt 0:00:05][%cal Bb4b5,Bb5b6][%mdl 32]} Ke7 $2 {[%emt 0:02:02]} (36... g5 37. Kd4 (37. bxc6 Rc7 $16) 37... e5+ 38. fxe5+ Ke6) 37. Kd4 {[%emt 0:00:41]} g5 {[%emt 0:02:11]} 38. h4 {[%emt 0:11:06]} gxh4 {[%emt 0:01:23]} 39. gxh4 {[%emt 0:00:04]} Rd7+ {[%emt 0:00:32]} 40. Kc4 {[%emt 0:00:05]} e5 {[%emt 0:01:50]} 41. b6 {[%emt 0:00:22]} ({Less strong is} 41. fxe5 f4 42. Ra6 (42. bxc6 f3 $16) 42... Ke6 43. Rxc6+ Kxe5 $18) 41... exf4 {[%emt 0:00:17]} 42. Rxa7 {[%emt 0:00:06] Weighted Error Value: White=0.07 (flawless) /Black=0.67} ({Worse is} 42. bxa7 f3 43. a8=Q f2 $15) 1-0

[Event "7th Porticcio Open 2022"]
[Site "Porticcio"]
[Date "2022.07.08"]
[Round "9.1"]
[White "Maurizzi, Marc Andria"]
[Black "Karttunen, Mika"]
[Result "1/2-1/2"]
[ECO "C65"]
[WhiteElo "2506"]
[BlackElo "2484"]
[Annotator "TA"]
[PlyCount "79"]
[EventDate "2022.07.02"]
[EventType "swiss"]
[EventCountry "FRA"]
[SourceTitle "playchess.com"]
[Source "ChessBase"]
[SourceQuality "1"]
[TimeControl "5400+30"]

{[%evp 31,79,15,48,49,42,56,54,39,48,52,60,45,68,37,74,42,49,37,46,29,43,28,58,53,63,44,50,50,46,34,37,39,32,0,0,21,22,0,14,0,10388,6682,29981,4699,3537,0,3935,0,2179,0]} 1. e4 {[%emt 0:00:07]} e5 {[%emt 0:00:10]} 2. Nf3 {[%emt 0:00:04]} Nc6 {[%emt 0:00:08]} 3. Bb5 {[%emt 0:00:04]} Nf6 {[%emt 0:00:13]} 4. d3 {[%emt 0:00:07]} d6 {[%emt 0:02:10]} 5. O-O {[%emt 0:01:12]} Be7 {[%emt 0:01:52]} 6. c3 {[%emt 0:03:09]} O-O {[%emt 0:01:12]} 7. Re1 {[%emt 0:00:17]} a6 {[%emt 0:01:26]} 8. Ba4 {[%emt 0:00:20]} b5 {[%emt 0:00:15]} 9. Bc2 {[%emt 0:00:50]} Nb8 {[%emt 0:02:16]} 10. Nbd2 {[%emt 0:07:31][%cal Bb1d2,Bd2f1,Bf1g3][%mdl 32]} Nbd7 {[%emt 0:02:23]} 11. Nf1 {[%emt 0:02:10]} Re8 {[%emt 0:01:24]} 12. Ng3 {[%emt 0:00:14]} Bf8 {[%emt 0:05:44]} 13. d4 {[%emt 0:05:06]} Bb7 {[%emt 0:02:53]} 14. h3 {[%emt 0:01:27]} h6 {[%emt 0:01:54]} 15. a4 {[%emt 0:06:47]} g6 {[%emt 0:05:14]} 16. Bd3 {[%emt 0:08:49]} c6 {[%emt 0:02:00]} 17. b4 {[%emt 0:03:55] [#] C92: Closed Ruy Lopez: 9...Be6, Karpov and Flohr-Zaitsev Variations.} Nb6 $146 {[%emt 0:11:38]} ({Predecessor:} 17... Bg7 18. Nh2 d5 19. Bb2 dxe4 20. Bxe4 exd4 21. cxd4 Nb6 22. axb5 axb5 23. Nf3 Na4 {0-1 (70) Ronchetti,N (2411)-Dervishi,E (2491) Frascati 2006}) 18. axb5 {[%emt 0:08:00]} (18. a5 {is more complex.} Na4 19. Qd2 exd4 20. cxd4 c5 21. bxc5 dxc5 22. d5) 18... axb5 {[%emt 0:04:54]} 19. Rxa8 {[%emt 0:01:00] White is slightly better.} Qxa8 {[%emt 0:06:55]} 20. dxe5 {[%emt 0:00:57]} dxe5 {[%emt 0:00:05]} 21. Be3 {[%emt 0:00:09]} Nbd7 {[%emt 0:11:53]} 22. Nd2 {[%emt 0:10:56]} Bg7 {[%emt 0:02:43]} 23. Nb3 {[%emt 0:01:55]} Nf8 {[%emt 0:00:37]} 24. Qc2 {[%emt 0:02:10]} Ne6 {[%emt 0:02:09]} 25. Ra1 {[%emt 0:00:22]} Qb8 {[%emt 0:01:53]} 26. c4 {[%emt 0:05:31]} bxc4 {[%emt 0:02:07]} 27. Bxc4 {[%emt 0:03:22]} Bc8 {[%emt 0:03:36]} 28. Qc3 {[%emt 0:02:09] White is more active.} Bf8 {[%emt 0:02:00]} 29. Nc5 {[%emt 0:01:36]} Nxc5 {[%emt 0:00:54]} 30. bxc5 {[%emt 0:00:34]} Be6 {[%emt 0:00:31]} 31. Bxe6 {[%emt 0:01:31]} Rxe6 {[%emt 0:00:05]} 32. Qa5 {[%emt 0:00:59]} (32. Ra6 {with more complications.} Qb1+ 33. Kh2 h5 34. Rb6) 32... Re7 {[%emt 0:06:27]} 33. Qb6 {[%emt 0:04:53]} Qc8 {[%emt 0:02:05]} 34. Rb1 {[%emt 0:01:36]} (34. Ra6 $5 {[%cal Rb6c6]}) 34... Re8 {[%emt 0:01:41]} 35. Qa7 {[%emt 0:01:33]} Qc7 $2 {[%mdl 8192] [#]} 36. Qxc7 $18 {[%emt 0:02:34]} Re7 {[%emt 0:06:07]} 37. Qb8 {[%emt 0:01:16]} (37. Qxc6 $142 Nh7 38. Qa8 h5 39. c6 h4 40. Rb7 Re6 41. c7 hxg3 42. c8=Q) 37... Re8 {[%emt 0:00:05]} 38. Qc7 {[%emt 0:00:11]} Re7 $1 {[%emt 0:00:05]} 39. Qb8 {[%emt 0:00:49]} Re8 {[%emt 0:00:08]} 40. Qc7 $2 {[%emt 0:00:25] Weighted Error Value: White=0.52/Black=0.52} (40. Qb7 $18 Re6 41. Rb6) 1/2-1/2

[Event "7th Porticcio Open 2022"]
[Site "Porticcio"]
[Date "2022.07.08"]
[Round "9.2"]
[White "Suarez Uriel, Adrian"]
[Black "Can, Isik"]
[Result "1/2-1/2"]
[ECO "B10"]
[WhiteElo "2386"]
[BlackElo "2445"]
[Annotator "RC"]
[PlyCount "113"]
[EventDate "2022.07.02"]
[EventType "swiss"]
[EventCountry "FRA"]
[SourceTitle "playchess.com"]
[Source "ChessBase"]
[SourceQuality "1"]
[TimeControl "5400+30"]

1. e4 {[%emt 0:02:03]} c6 {[%emt 0:00:39]} 2. Nf3 {[%emt 0:00:04]} d5 {[%emt 0:00:04]} 3. Nc3 {[%emt 0:00:03]} dxe4 {[%emt 0:00:04]} 4. Nxe4 {[%emt 0:00:04]} Nf6 {[%emt 0:00:03]} 5. Qe2 {[%emt 0:00:04]} Nxe4 {[%emt 0:00:03]} 6. Qxe4 {[%emt 0:00:04]} Qd5 {[%emt 0:00:04]} 7. Qh4 {[%emt 0:00:05]} Qe6+ {[%emt 0:00:03]} 8. Be2 {[%emt 0:00:07]} Qg6 {[%emt 0:00:10]} 9. O-O {[%emt 0:06:57]} Qxc2 {[%emt 0:02:38]} 10. Bc4 {[%emt 0:05:59]} Qf5 {[%emt 0:14:43]} 11. Re1 {[%emt 0:03:19]} e6 {[%emt 0:04:06]} 12. d4 {[%emt 0:00:36]} Nd7 {[%emt 0:00:56]} 13. Qg3 {[%emt 0:04:51]} Qg6 {[%emt 0:01:53]} 14. Qh3 {[%emt 0:05:04]} Be7 {[%emt 0:13:33]} 15. Ne5 {[%emt 0:23:37]} Nxe5 {[%emt 0:01:33]} 16. dxe5 {[%emt 0:00:02]} h5 {[%emt 0:01:13]} 17. Bd3 {[%emt 0:00:19]} Qg4 {[%emt 0:00:14]} 18. Qxg4 {[%emt 0:00:33]} hxg4 {[%emt 0:00:00]} 19. Re4 {[%emt 0:01:50]} f5 {[%emt 0:01:53]} 20. exf6 {[%emt 0:00:57]} gxf6 {[%emt 0:00:07]} 21. Rxg4 {[%emt 0:00:44]} e5 {[%emt 0:04:09]} 22. Bg6+ {[%emt 0:04:22]} Kf8 {[%emt 0:04:31]} 23. Rg3 {[%emt 0:03:30]} Bc5 {[%emt 0:02:26]} 24. Be3 {[%emt 0:10:23]} Bxe3 {[%emt 0:01:55]} 25. Rxe3 {[%emt 0:00:06]} Rg8 {[%emt 0:03:09]} 26. Bc2 {[%emt 0:00:55]} Be6 {[%emt 0:00:20]} 27. Rd1 {[%emt 0:04:21]} Kf7 {[%emt 0:06:17]} 28. Bb3 {[%emt 0:09:08]} Rad8 {[%emt 0:00:54]} 29. Rxd8 {[%emt 0:00:30]} Rxd8 {[%emt 0:00:05]} 30. Bxe6+ {[%emt 0:00:03]} Kxe6 {[%emt 0:00:04]} 31. g4 {[%emt 0:00:03]} Rd4 {[%emt 0:05:55]} 32. Rg3 {[%emt 0:00:05]} c5 {[%emt 0:10:08]} 33. Kf1 {[%emt 0:01:49]} Rd2 {[%emt 0:06:25]} 34. Rb3 {[%emt 0:04:40]} b6 {[%emt 0:00:06]} 35. Ke1 {[%emt 0:00:17]} Rc2 {[%emt 0:01:52]} 36. a3 {[%emt 0:00:02]} Kd5 {[%emt 0:01:56]} 37. h4 {[%emt 0:01:48]} c4 {[%emt 0:09:00]} 38. Rh3 {[%emt 0:00:01]} Rxb2 {[%emt 0:00:55]} 39. h5 {[%emt 0:00:15]} Rb3 {[%emt 0:00:42]} 40. Rxb3 {[%emt 0:02:12]} cxb3 {[%emt 0:00:04]} 41. Kd2 {[%emt 0:00:00]} Ke6 {[%emt 0:00:08]} 42. Kc3 {[%emt 0:00:01]} b5 {[%emt 0:00:37]} 43. Kxb3 {[%emt 0:00:32]} a5 {[%emt 0:00:04]} 44. Kc3 {[%emt 0:00:38]} Kf7 {[%emt 0:01:37]} 45. Kd3 {[%emt 0:00:04]} Kg7 {[%emt 0:03:12]} 46. Ke4 {[%emt 0:00:05]} Kh6 {[%emt 0:00:44]} 47. Kd5 {[%emt 0:04:54]} b4 {[%emt 0:00:26]} 48. axb4 {[%emt 0:00:13]} axb4 {[%emt 0:00:05]} 49. Kc4 {[%emt 0:00:13]} f5 {[%emt 0:00:04]} 50. gxf5 {[%emt 0:01:51]} Kxh5 {[%emt 0:00:06]} 51. Kxb4 {[%emt 0:00:08]} Kg5 {[%emt 0:00:02]} 52. Kc4 {[%emt 0:00:04]} Kxf5 {[%emt 0:00:04]} 53. Kd5 {[%emt 0:00:07]} Kf4 {[%emt 0:00:03]} 54. Ke6 {[%emt 0:00:06]} e4 {[%emt 0:00:03]} 55. Kd5 {[%emt 0:00:02]} Kf3 {[%emt 0:00:03]} 56. Kd4 {[%emt 0:00:03]} Kxf2 {[%emt 0:00:03]} 57. Kxe4 1/2-1/2